bitfinex/quotes_SOLUSD_20250622
["timestamp","ask_amount","ask_price","bid_price","bid_amount"]
[1750561725247,23.94799834,135.27,135.22,18.43858065]
[1750561725422,5.50941769,135.26,135.22,18.43858065]
[1750561725836,18.43858065,135.27,135.23,4.4368853]
[1750561726073,23.94799834,135.27,135.23,4.4368853]
[1750561726370,18.43858065,135.27,135.23,4.4368853]
[1750561726569,23.94799834,135.27,135.23,4.4368853]
[1750561726750,18.43858065,135.27,135.23,4.4368853]
[1750561726948,23.94799834,135.28,135.23,33.96767921]
[1750561727658,18.43858065,135.28,135.23,33.96767921]
[1750561728043,23.94799834,135.28,135.23,22.87546595]
[1750561728364,18.43858065,135.28,135.24,18.43858065]
[1750561728541,18.43858065,135.28,135.23,4.4368853]
[1750561728542,18.43858065,135.28,135.23,15.52909856]
[1750561728748,18.43858065,135.27,135.23,15.52909856]
[1750561730061,5.50941769,135.28,135.23,33.96767921]
[1750561730260,5.50941769,135.28,135.24,18.43858065]
[1750561730465,23.94799834,135.28,135.23,33.96767921]
[1750561730759,18.43858065,135.27,135.23,15.52909856]
[1750561731060,18.43858065,135.27,135.23,4.4368853]
[1750561731871,23.94799834,135.27,135.23,4.4368853]
[1750561732059,18.43858065,135.27,135.23,4.4368853]
[1750561732266,5.50941769,135.28,135.23,22.87546595]
[1750561732556,23.94799834,135.28,135.23,33.96767921]
[1750561734063,1.644,135.33,135.27,18.43858065]
[1750561734264,5.50805022,135.32,135.28,18.43858065]
[1750561734861,18.43858065,135.29,135.23,33.96767921]
[1750561735034,18.43858065,135.28,135.23,15.52909856]
[1750561735233,18.43858065,135.29,135.24,18.43858065]
[1750561735464,18.43858065,135.3,135.25,18.43858065]
[1750561735770,23.94663087,135.31,135.27,4.43557329]
[1750561735961,5.50805022,135.32,135.27,22.87415394]
[1750561736258,18.43858065,135.32,135.27,22.87415394]
[1750561736666,18.43858065,135.32,135.27,33.96308718]
[1750561737455,23.94663087,135.32,135.27,4.43557329]
[1750561737648,18.43858065,135.31,135.27,4.43557329]
[1750561738363,18.43858065,135.3,135.26,4.43579671]
[1750561738541,18.43858065,135.29,135.26,4.43579671]
[1750561739361,5.50805022,135.3,135.26,4.43579671]
[1750561739362,18.43858065,135.28,135.26,4.43579671]
[1750561740161,18.43858065,135.28,135.25,4.4362292]
[1750561740362,18.43858065,135.27,135.25,4.4362292]
[1750561740544,18.43858065,135.28,135.25,4.4362292]
[1750561740859,18.43858065,135.31,135.26,18.43858065]
[1750561741062,5.50554838,135.32,135.27,18.43858065]
[1750561741261,23.94412903,135.32,135.27,18.43858065]
[1750561741461,20.08258065,135.33,135.28,18.43858065]
[1750561741665,18.43858065,135.33,135.28,18.43858065]
[1750561741972,57.04964886,135.35,135.26,6.6273]
[1750561741973,7.12,135.35,135.31,18.43858065]
[1750561742277,7.12,135.35,135.27,26.0]
[1750561742278,23.93791782,135.37,135.33,22.87218738]
[1750561742575,18.43858065,135.39,135.34,18.43858065]
[1750561744056,27.18966205,135.4,135.35,18.43858065]
[1750561744247,1.6310814,135.4,135.36,22.87120476]
[1750561744569,1.6310814,135.4,135.36,15.51418439]
[1750561744760,1.6310814,135.4,135.37,18.43858065]
[1750561745546,1.6310814,135.4,135.38,4.43196927]
[1750561745872,1.6310814,135.4,135.38,22.87054992]
[1750561746286,20.06966205,135.4,135.35,22.87153225]
[1750561746452,20.06966205,135.4,135.35,4.4329516]
[1750561746453,18.43858065,135.39,135.35,4.4329516]
[1750561746884,18.43858065,135.39,135.35,22.87153225]
[1750561747374,1.6310814,135.4,135.36,18.43858065]
[1750561747571,20.06966205,135.4,135.36,18.43858065]
[1750561747775,1.6310814,135.4,135.37,4.43229666]
[1750561748070,20.06966205,135.4,135.37,4.43229666]
[1750561748681,1.6310814,135.4,135.37,22.87087731]
[1750561749180,1.6310814,135.4,135.38,18.43858065]
[1750561749367,1.6310814,135.4,135.37,15.51303833]
[1750561749368,1.6310814,135.4,135.39,18.43858065]
[1750561749570,1.1310814,135.4,135.39,18.43858065]
[1750561749788,1.1310814,135.4,135.39,22.87022257]
[1750561750154,1.1310814,135.4,135.39,30.43164192]
[1750561750480,1.1310814,135.4,135.39,48.87022257]
[1750561752380,1.1310814,135.4,135.39,67.51987143]
[1750561752586,1.1310814,135.4,135.39,74.13317143]
[1750561754286,1.1310814,135.4,135.39,99.67175208]
[1750561754492,25.53858065,135.5,135.45,18.43858065]
[1750561754663,18.43858065,135.5,135.45,18.43858065]
[1750561754863,18.43858065,135.51,135.46,18.43858065]
[1750561755103,8.1217,135.53,135.47,18.43858065]
[1750561755384,18.43858065,135.51,135.46,18.43858065]
[1750561755764,18.43858065,135.51,135.47,4.42902487]
[1750561755964,3.4273588,135.51,135.47,22.86760552]
[1750561756291,3.4273588,135.51,135.49,18.43858065]
[1750561756490,3.4273588,135.51,135.47,47.69328706]
[1750561756696,18.43858065,135.5,135.45,22.86825949]
[1750561756986,18.64964886,135.49,135.41,22.86956802]
[1750561757193,18.43858065,135.46,135.41,22.86956802]
[1750561757360,44.64964886,135.49,135.41,22.86956802]
[1750561757561,18.43858065,135.46,135.41,22.86956802]
[1750561757786,18.43858065,135.45,135.41,4.43098737]
[1750561757986,18.43858065,135.44,135.41,4.43098737]
[1750561758191,18.43858065,135.43,135.38,4.43196927]
[1750561758490,18.43858065,135.43,135.38,22.87054992]
[1750561758663,18.43858065,135.42,135.38,4.43196927]
[1750561758865,18.43858065,135.41,135.38,4.43196927]
[1750561759284,18.43858065,135.4,135.37,4.43222096]
[1750561760094,18.43858065,135.4,135.36,4.43262411]
[1750561760303,6.1044,135.41,135.36,4.43262411]
[1750561760487,18.43858065,135.4,135.36,4.43262411]
[1750561761365,27.6018,135.43,135.36,33.95276504]
[1750561761660,27.6018,135.43,135.36,15.51418439]
[1750561761661,18.43858065,135.42,135.36,15.51418439]
[1750561761970,18.43858065,135.42,135.37,18.43858065]
[1750561762163,18.43858065,135.42,135.38,4.43196927]
[1750561762489,18.43858065,135.44,135.39,18.43858065]
[1750561762891,18.43858065,135.43,135.38,33.95047309]
[1750561763391,18.43858065,135.42,135.38,4.43196927]
[1750561763795,18.64964886,135.45,135.38,4.43196927]
[1750561763796,18.43858065,135.43,135.38,22.87054992]
[1750561764690,18.43858065,135.44,135.39,18.43858065]
[1750561764867,18.43858065,135.44,135.38,4.43196927]
[1750561765069,18.43858065,135.44,135.39,18.43858065]
[1750561765690,18.43858065,135.44,135.4,4.43131462]
[1750561766282,26.0,135.46,135.4,22.86989527]
[1750561766485,18.43858065,135.45,135.4,22.86989527]
[1750561766683,18.43858065,135.44,135.4,22.86989527]
[1750561766935,26.0,135.46,135.4,33.94818182]
[1750561767082,44.43858065,135.46,135.41,18.43858065]
[1750561767974,44.43858065,135.46,135.42,4.43066016]
[1750561768178,26.0,135.46,135.42,4.43066016]
[1750561769492,18.43858065,135.45,135.42,4.43066016]
[1750561769696,31.43721739,135.46,135.42,4.43066016]
[1750561769998,44.43858065,135.46,135.42,4.43066016]
[1750561770186,18.43858065,135.45,135.42,4.43066016]
[1750561770678,18.43858065,135.43,135.38,4.43196927]
[1750561770880,3.4273588,135.43,135.38,15.51189244]
[1750561771101,3.4273588,135.43,135.39,18.43858065]
[1750561772077,3.4273588,135.43,135.4,4.43131462]
[1750561774503,3.4273588,135.43,135.38,11.07992317]
[1750561774504,18.43858065,135.41,135.38,4.43196927]
[1750561774706,18.43858065,135.39,135.34,4.43327914]
[1750561774903,18.43858065,135.35,135.31,4.43417238]
[1750561775094,18.43858065,135.32,135.28,18.438581]
[1750561775298,18.43858065,135.3,135.28,18.438581]
[1750561775486,1.5091,135.34,135.28,22.87380286]
[1750561775689,1.5091,135.34,135.28,30.43522186]
[1750561775896,19.94768065,135.34,135.29,18.43858065]
[1750561776195,18.43858065,135.34,135.3,4.4345898]
[1750561776395,23.90026718,135.34,135.3,4.4345898]
[1750561776709,5.46168653,135.35,135.31,18.43858065]
[1750561776906,18.43858065,135.35,135.3,33.95964495]
[1750561777415,5.4648973,135.36,135.31,18.43858065]
[1750561777723,27.6318,135.38,135.33,18.43858065]
[1750561778013,5.46788882,135.37,135.33,18.43858065]
[1750561778184,18.43858065,135.37,135.34,4.43327914]
[1750561778382,18.43858065,135.35,135.29,48.87349823]
[1750561778706,18.43858065,135.34,135.3,18.43858065]
[1750561778899,18.43858065,135.34,135.29,41.52145601]
[1750561778900,18.43858065,135.34,135.29,59.96003666]
[1750561779423,18.43858065,135.34,135.3,18.43858065]
[1750561779582,18.43858065,135.35,135.3,18.43858065]
[1750561780019,5.47383529,135.36,135.3,18.43858065]
[1750561780197,18.43858065,135.35,135.31,4.43426206]
[1750561780517,18.43858065,135.35,135.31,22.87284271]
[1750561781013,18.43858065,135.35,135.31,4.43426206]
[1750561781394,18.43858065,135.35,135.31,18.43858065]
[1750561781795,5.47839854,135.36,135.31,18.43858065]
[1750561781994,18.43858065,135.36,135.3,15.5210643]
[1750561782196,18.43858065,135.35,135.31,18.43858065]
[1750561782398,18.43858065,135.34,135.3,4.4345898]
[1750561783003,18.43858065,135.34,135.3,15.5210643]
[1750561783613,23.91974433,135.34,135.3,15.5210643]
[1750561783798,18.43858065,135.34,135.3,15.5210643]
[1750561784194,18.43858065,135.31,135.28,4.43524541]
[1750561784404,18.43858065,135.3,135.28,4.43524541]
[1750561784724,23.92773996,135.29,135.26,4.43590122]
[1750561784902,18.43858065,135.29,135.26,4.43590122]
[1750561785612,18.43858065,135.29,135.24,29.52923502]
[1750561785613,18.43858065,135.29,135.25,4.4362292]
[1750561785818,18.43858065,135.28,135.25,4.4362292]
[1750561786039,5.48687283,135.29,135.25,15.52680221]
[1750561786323,20.27211195,135.28,135.25,15.52680221]
[1750561787119,20.27211195,135.28,135.25,4.4362292]
[1750561787617,20.27211195,135.28,135.24,4.43655723]
[1750561787996,18.43858065,135.27,135.24,4.43655723]
[1750561788803,18.43858065,135.27,135.23,4.4368853]
[1750561789126,20.27211195,135.28,135.23,33.96767921]
[1750561791416,1.8335313,135.28,135.26,18.43858065]
[1750561792626,1.8335313,135.28,135.27,18.43858065]
[1750561793000,1.8335313,135.28,135.27,37.08822951]
[1750561793233,1.8335313,135.28,135.27,41.5238028]
[1750561797418,1.8335313,135.28,135.27,47.9659028]
[1750561797604,1.8335313,135.28,135.27,79.4059028]
[1750561797818,20.01548065,135.38,135.31,26.0]
[1750561798129,1.5769,135.38,135.34,18.43858065]
[1750561798337,1.5938275,135.4,135.36,18.43858065]
[1750561799411,1.5938275,135.4,135.37,4.43229666]
[1750561801353,18.43858065,135.39,135.37,4.43229666]
[1750561802014,20.03240815,135.4,135.37,4.43229666]
[1750561802344,1.5938275,135.4,135.37,4.43229666]
[1750561803047,1.5938275,135.4,135.37,33.95161898]
[1750561803353,1.5938275,135.4,135.38,18.43858065]
[1750561804213,1.5938275,135.4,135.39,18.43858065]
[1750561804419,1.5938275,135.4,135.39,44.43858065]
[1750561804617,1.5938275,135.4,135.37,15.51303833]
[1750561805032,18.43858065,135.39,135.37,4.43229666]
[1750561805344,18.43858065,135.38,135.34,4.43327914]
[1750561805553,18.43858065,135.37,135.34,4.43327914]
[1750561805925,18.43858065,135.36,135.34,4.43327914]
[1750561806520,1.5434,135.38,135.32,33.95735096]
[1750561806748,19.98198065,135.38,135.33,18.43858065]
[1750561806958,1.5434,135.38,135.33,18.43858065]
[1750561807258,19.98198065,135.38,135.33,18.43858065]
[1750561807618,19.98198065,135.38,135.34,18.43858065]
[1750561808526,19.98198065,135.38,135.35,4.4329516]
[1750561808731,18.43858065,135.37,135.35,4.4329516]
[1750561809837,18.43858065,135.37,135.33,4.43360673]
[1750561810561,19.98198065,135.38,135.33,33.95620422]
[1750561811645,18.43858065,135.37,135.33,15.51762357]
[1750561812050,1.5434,135.38,135.33,15.51762357]
[1750561812051,19.98198065,135.38,135.33,33.95620422]
[1750561812956,18.43858065,135.37,135.33,15.51762357]
[1750561813659,19.98198065,135.38,135.34,18.43858065]
[1750561813956,46.03240815,135.4,135.35,18.43858065]
[1750561814137,1.5938275,135.4,135.36,18.43858065]
[1750561814642,1.5938275,135.4,135.37,18.43858065]
[1750561814848,1.5938275,135.4,135.39,4.43164192]
[1750561815943,1.5938275,135.4,135.37,4.43229666]
[1750561816445,20.03240815,135.4,135.37,4.43229666]
[1750561816645,18.43858065,135.39,135.37,4.43229666]
[1750561816833,18.43858065,135.39,135.36,4.43262411]
[1750561817228,20.03240815,135.4,135.36,4.43262411]
[1750561817428,18.43858065,135.39,135.36,4.43262411]
[1750561817657,1.5938275,135.4,135.36,15.51418439]
[1750561817860,1.5938275,135.4,135.37,18.43858065]
[1750561818039,1.5938275,135.4,135.36,33.95276504]
[1750561818235,20.03240815,135.4,135.36,15.51418439]
[1750561818632,20.03240815,135.4,135.36,33.95276504]
[1750561819630,1.5938275,135.4,135.36,33.95276504]
[1750561820750,1.5938275,135.4,135.38,18.43858065]
[1750561821537,1.5938275,135.4,135.39,4.43164192]
[1750561821937,1.5938275,135.4,135.39,22.87022257]
[1750561822739,20.03240815,135.4,135.37,4.43229666]
[1750561822962,20.03240815,135.4,135.25,10.0]
[1750561822963,1.5183,135.37,135.31,4.43426206]
[1750561823170,18.43858065,135.33,135.31,4.43426206]
[1750561823365,18.43858065,135.32,135.29,4.43491758]
[1750561823550,18.43858065,135.31,135.28,4.43524541]
[1750561823865,18.43858065,135.29,135.24,11.09102174]
[1750561824043,18.43858065,135.29,135.25,15.52680221]
[1750561825155,19.95688065,135.31,135.26,18.43858065]
[1750561825353,19.95688065,135.31,135.27,18.43858065]
[1750561825555,18.43858065,135.3,135.26,18.43858065]
[1750561825872,19.95688065,135.31,135.27,18.43858065]
[1750561826767,31.5,135.32,135.28,18.43858065]
[1750561826943,49.93858065,135.32,135.28,18.43858065]
[1750561827640,49.93858065,135.32,135.29,15.52221154]
[1750561828052,18.43858065,135.32,135.29,15.52221154]
[1750561828561,18.43858065,135.3,135.29,4.43491758]
[1750561829942,18.43858065,135.3,135.26,11.08939541]
[1750561830440,44.43858065,135.31,135.26,29.52797606]
[1750561830769,18.43858065,135.31,135.26,29.52797606]
[1750561830955,44.64964886,135.33,135.26,29.52797606]
[1750561831159,18.43858065,135.3,135.26,11.08939541]
[1750561831343,18.43858065,135.3,135.26,29.52797606]
[1750561831951,18.43858065,135.3,135.26,15.52529663]
[1750561832466,18.43858065,135.29,135.26,15.52529663]
[1750561832671,18.43858065,135.28,135.26,4.43590122]
[1750561832877,18.43858065,135.27,135.26,4.43590122]
[1750561833043,26.0,135.3,135.26,4.43590122]
[1750561833246,18.43858065,135.28,135.26,4.43590122]
[1750561833460,18.43858065,135.29,135.26,4.43590122]
[1750561833652,18.43858065,135.29,135.26,15.52565428]
[1750561833957,18.43858065,135.28,135.26,15.52565428]
[1750561834483,18.43858065,135.28,135.26,11.08975306]
[1750561839584,18.43858065,135.29,135.26,11.08975306]
[1750561839878,119.12,135.31,135.26,11.08975306]
[1750561840066,18.43858065,135.29,135.26,11.08975306]
[1750561841750,26.0,135.29,135.25,4.4362292]
[1750561842007,18.43858065,135.3,135.25,33.96538286]
[1750561842180,7.18,135.34,135.25,33.96538286]
[1750561842181,18.43858065,135.34,135.29,18.43858065]
[1750561842385,1.5049,135.35,135.31,18.43858065]
[1750561843893,19.94348065,135.35,135.31,18.43858065]
[1750561844249,1.5049,135.35,135.31,18.43858065]
[1750561844655,1.5049,135.35,135.32,18.43858065]
[1750561844860,25.67858065,135.37,135.32,18.43858065]
[1750561845753,25.67858065,135.37,135.33,4.43360673]
[1750561847997,7.24,135.37,135.33,22.87218738]
[1750561850859,25.67858065,135.37,135.33,4.43360673]
[1750561852886,18.43858065,135.36,135.33,4.43360673]
[1750561853873,18.43858065,135.36,135.32,4.43393437]
[1750561854271,18.43858065,135.36,135.31,18.43858065]
[1750561854272,18.43858065,135.35,135.31,4.43415402]
[1750561854502,18.43858065,135.34,135.31,4.43415402]
[1750561855003,18.43858065,135.33,135.28,18.43858065]
[1750561855181,18.43858065,135.32,135.27,18.43858065]
[1750561855372,37.3788,135.35,135.28,4.43524541]
[1750561855373,18.43858065,135.31,135.28,4.43524541]
[1750561856600,18.43858065,135.3,135.25,4.4362292]
[1750561856800,18.43858065,135.29,135.25,4.4362292]
[1750561857988,32.9041,135.31,135.27,18.43858065]
[1750561858197,51.34268065,135.31,135.26,44.43858065]
[1750561859581,51.34268065,135.31,135.26,26.0]
[1750561859895,18.43858065,135.3,135.27,4.43557329]
[1750561860096,51.34268065,135.31,135.27,4.43557329]
[1750561863815,32.9041,135.31,135.26,4.43583349]
[1750561863981,18.43858065,135.28,135.26,4.43583349]
[1750561864583,18.43858065,135.28,135.24,4.43655723]
[1750561864782,12.62950302,135.31,135.26,11.02540302]
[1750561865201,1.6041,135.31,135.26,11.02540302]
[1750561865403,12.62950302,135.31,135.26,11.02540302]
[1750561865602,11.02540302,135.34,135.29,11.02540302]
[1750561865904,11.02540302,135.32,135.27,37.02540302]
[1750561866607,11.02540302,135.32,135.28,4.43524541]
[1750561867114,11.02540302,135.32,135.28,15.52335895]
[1750561867295,11.02540302,135.33,135.28,26.54876197]
[1750561867609,11.02540302,135.32,135.28,15.52335895]
[1750561867784,36.80808306,135.34,135.28,15.52335895]
[1750561868105,11.02540302,135.32,135.28,15.52335895]
[1750561868404,11.02540302,135.33,135.28,26.54876197]
[1750561868582,1.634,135.35,135.32,4.43393437]
[1750561868783,5.50748975,135.37,135.33,11.02540302]
[1750561869005,5.50748975,135.39,135.35,11.02540302]
[1750561869210,11.02540302,135.38,135.32,60.16841917]
[1750561869517,11.02540302,135.38,135.33,11.02540302]
[1750561869688,11.02540302,135.39,135.34,11.02540302]
[1750561870918,18.35579267,135.39,135.35,4.4329516]
[1750561871939,7.10131725,135.4,135.35,4.4329516]
[1750561872120,18.35579267,135.38,135.35,4.4329516]
[1750561873603,18.35579267,135.38,135.33,18.35579267]
[1750561873812,18.35579267,135.38,135.34,4.43327914]
[1750561876206,18.35579267,135.38,135.33,33.87341624]
[1750561879543,18.35579267,135.34,135.29,4.43491758]
[1750561879721,18.35579267,135.34,135.29,33.87800421]
[1750561879895,18.35579267,135.33,135.29,15.52221154]
[1750561880292,18.35579267,135.32,135.29,4.43491758]
[1750561880900,31.28,135.33,135.29,4.43491758]
[1750561880901,18.35579267,135.31,135.29,4.43491758]
[1750561881514,18.35579267,135.31,135.27,4.43557329]
[1750561882114,18.35579267,135.3,135.27,4.43557329]
[1750561883026,18.35579267,135.28,135.25,4.4362292]
[1750561883728,18.35579267,135.27,135.25,4.4362292]
[1750561885342,18.35579267,135.28,135.25,4.4362292]
[1750561886533,31.3,135.29,135.25,4.4362292]
[1750561886824,18.35579267,135.28,135.25,4.4362292]
[1750561888526,31.3,135.29,135.25,4.4362292]
[1750561888732,18.35579267,135.28,135.25,4.4362292]
[1750561889844,103.1960701,135.36,135.27,18.35579267]
[1750561890042,19.99189267,135.35,135.3,18.35579267]
[1750561890323,7.14,135.37,135.32,18.35579267]
[1750561890324,25.49579267,135.37,135.32,18.35579267]
[1750561890633,18.35579267,135.38,135.35,4.4329516]
[1750561891136,18.35579267,135.39,135.35,33.87112328]
[1750561891510,32.8938275,135.4,135.35,15.51533061]
[1750561891735,18.35579267,135.38,135.35,15.51533061]
[1750561892123,18.35579267,135.38,135.35,4.4329516]
[1750561892433,18.35579267,135.36,135.31,44.35579267]
[1750561892817,18.35579267,135.37,135.32,22.78972704]
[1750561893333,18.35579267,135.37,135.32,33.87456298]
[1750561894914,31.49861322,135.39,135.32,33.87456298]
[1750561894915,18.35579267,135.36,135.32,15.51877031]
[1750561897509,18.35579267,135.35,135.32,4.43393437]
[1750561898346,18.35579267,135.36,135.32,4.43393437]
[1750561898904,11.01842495,135.36,135.32,4.43393437]
[1750561899939,42.31842495,135.37,135.32,26.53719526]
[1750561900146,11.01842495,135.36,135.32,15.51877031]
[1750561900723,42.31842495,135.37,135.32,26.53719526]
[1750561900922,31.3,135.37,135.33,11.01842495]
[1750561901116,87.6,135.38,135.35,11.01842495]
[1750561901306,12.61225245,135.4,135.35,11.01842495]
[1750561901821,12.61225245,135.4,135.36,4.43262411]
[1750561902835,19.94688553,135.4,135.35,18.35305803]
[1750561903139,18.35305803,135.39,135.34,18.35305803]
[1750561905135,18.35305803,135.39,135.35,4.4329516]
[1750561905508,18.35305803,135.38,135.35,15.51533061]
[1750561905739,49.63305803,135.39,135.35,15.51533061]
[1750561908037,18.35305803,135.38,135.35,4.4329516]
[1750561909229,18.35305803,135.37,135.33,11.08399688]
[1750561909561,18.35305803,135.37,135.32,4.43393437]
[1750561909748,18.35305803,135.36,135.32,4.43393437]
[1750561910844,18.35305803,135.37,135.32,22.7869924]
[1750561911551,18.35305803,135.37,135.32,15.51877031]
[1750561912046,18.35305803,135.35,135.3,4.4345898]
[1750561912252,18.35305803,135.33,135.3,4.4345898]
[1750561912435,36.78067792,135.35,135.28,24.58585803]
[1750561912436,18.35305803,135.31,135.28,4.43524541]
[1750561912645,18.35305803,135.29,135.26,4.43590122]
[1750561912958,18.35305803,135.28,135.26,4.43590122]
[1750561913332,18.35305803,135.28,135.24,15.5279503]
[1750561914624,18.35305803,135.29,135.24,33.88100833]
[1750561915253,49.63305803,135.31,135.26,18.35305803]
[1750561915449,49.63305803,135.31,135.27,4.43557329]
[1750561915968,49.63305803,135.31,135.27,33.87756456]
[1750561916255,49.63305803,135.31,135.27,15.52450653]
[1750561916549,18.35305803,135.3,135.27,4.43557329]
[1750561917347,18.35305803,135.3,135.25,18.35305803]
[1750561917553,18.35305803,135.3,135.26,4.43590122]
[1750561918143,18.35305803,135.29,135.26,4.43590122]
[1750561919441,18.35305803,135.29,135.25,4.4362292]
[1750561922561,18.35305803,135.29,135.25,15.52680221]
[1750561923065,18.35305803,135.33,135.28,18.35305803]
[1750561923244,31.28,135.34,135.25,41.52680221]
[1750561923447,18.35305803,135.31,135.27,18.35305803]
[1750561923668,18.35305803,135.32,135.28,4.43524541]
[1750561924241,18.35305803,135.32,135.28,15.52335895]
[1750561924935,11.0246622,135.32,135.28,15.52335895]
[1750561927754,11.0246622,135.31,135.28,4.43524541]
[1750561927956,11.0246622,135.3,135.28,4.43524541]
[1750561928468,11.0246622,135.29,135.26,4.43590122]
[1750561928635,11.0246622,135.33,135.28,11.0246622]
[1750561928840,24.13458395,135.34,135.29,11.0246622]
[1750561929066,11.0246622,135.32,135.27,11.0246622]
[1750561929533,11.0246622,135.32,135.28,4.43524541]
[1750561929861,11.0246622,135.29,135.26,4.43590122]
[1750561930042,11.0246622,135.3,135.26,15.52565428]
[1750561930248,11.0246622,135.31,135.26,26.55031648]
[1750561930677,11.0246622,135.3,135.26,15.52565428]
[1750561933563,11.0246622,135.3,135.26,4.43590122]
[1750561933768,11.0246622,135.29,135.26,4.43590122]
[1750561934261,31.28,135.31,135.26,4.43590122]
[1750561934562,11.0246622,135.29,135.26,4.43590122]
[1750561935138,11.0246622,135.29,135.25,11.0246622]
[1750561936166,31.28,135.31,135.23,4.4368853]
[1750561936167,27.5492,135.28,135.23,4.4368853]
[1750561936350,11.0246622,135.25,135.23,4.4368853]
[1750561937262,1.5492,135.28,135.22,15.53022245]
[1750561937468,94.72,135.3,135.24,11.0246622]
[1750561937469,7.12,135.3,135.24,11.0246622]
[1750561937675,11.0246622,135.29,135.24,11.0246622]
[1750561938872,7.12,135.3,135.25,18.64964886]
[1750561939075,11.0246622,135.29,135.22,63.71628959]
[1750561939261,11.0246622,135.29,135.25,18.64964886]
[1750561939464,11.0246622,135.29,135.26,4.43590122]
[1750561940479,11.0246622,135.27,135.23,4.4368853]
[1750561940775,11.0246622,135.26,135.23,4.4368853]
[1750561941353,11.0246622,135.26,135.22,15.5295151]
[1750561941575,11.0246622,135.25,135.22,15.5295151]
[1750561942075,11.0246622,135.25,135.22,4.43721342]
[1750561942975,11.0246622,135.24,135.22,4.43721342]
[1750561943163,36.77738219,135.27,135.22,4.43721342]
[1750561943164,11.0246622,135.25,135.22,4.43721342]
[1750561943571,11.0246622,135.24,135.21,4.4375416]
[1750561943770,11.0246622,135.26,135.21,15.4622038]
[1750561944786,11.0246622,135.26,135.21,26.5560578]
[1750561945782,11.0246622,135.25,135.21,15.5313956]
[1750561945962,11.0246622,135.26,135.21,26.5560578]
[1750561946472,11.0246622,135.25,135.21,15.5313956]
[1750561946784,11.0246622,135.26,135.21,26.5560578]
[1750561946986,1.5492,135.32,135.25,11.0246622]
[1750561947170,24.13458395,135.34,135.29,11.0246622]
[1750561947499,11.0246622,135.31,135.27,4.43557329]
[1750561948182,11.0246622,135.3,135.27,4.43557329]
[1750561948385,11.0246622,135.31,135.27,4.43557329]
[1750561948961,11.0246622,135.32,135.27,15.46023549]
[1750561949171,11.0246622,135.31,135.27,15.52450653]
[1750561950384,11.0246622,135.31,135.27,22.11359544]
[1750561951888,5.49801103,135.33,135.27,22.11359544]
[1750561952112,11.0246622,135.32,135.27,22.11359544]
[1750561952609,16.52267323,135.32,135.27,26.54916873]
[1750561952811,11.0246622,135.31,135.27,15.52450653]
[1750561953722,11.0246622,135.3,135.27,15.52450653]
[1750561953904,11.0246622,135.31,135.27,15.52450653]
[1750561954709,16.53653402,135.31,135.27,15.52450653]
[1750561955008,11.0246622,135.31,135.27,15.52450653]
[1750561955508,16.53653402,135.31,135.27,15.52450653]
[1750561955694,11.0246622,135.31,135.27,15.52450653]
[1750561956085,11.0246622,135.29,135.26,4.43590122]
[1750561957313,5.52042014,135.3,135.26,26.55031648]
[1750561957510,11.0246622,135.31,135.26,26.55031648]
[1750561957694,5.52136762,135.3,135.26,26.55031648]
[1750561957892,11.0246622,135.3,135.26,15.52565428]
[1750561958621,37.0246622,135.31,135.26,26.55031648]
[1750561958794,5.52136098,135.3,135.26,26.55031648]
[1750561958996,5.52136098,135.3,135.27,29.67431106]
[1750561959314,16.54549458,135.33,135.28,11.0246622]
[1750561959500,5.52083238,135.32,135.28,11.0246622]
[1750561959817,11.0246622,135.33,135.28,11.0246622]
[1750561960191,24.13458395,135.34,135.29,11.0246622]
[1750561960521,5.52007174,135.33,135.31,4.43426206]
[1750561960812,13.10992175,135.34,135.31,4.43426206]
[1750561961518,16.54304093,135.33,135.3,4.43452236]
[1750561961722,11.0246622,135.33,135.3,4.43452236]
[1750561962087,24.13458395,135.34,135.3,4.43452236]
[1750561962311,5.51830773,135.33,135.3,4.43452236]
[1750561962614,13.10992175,135.34,135.32,15.45859657]
[1750561963218,13.10992175,135.34,135.32,4.43393437]
[1750561968419,13.10992175,135.34,135.33,29.67431106]
[1750561968618,13.10992175,135.34,135.33,36.17751106]
[1750561968826,1.5938275,135.4,135.37,18.64964886]
[1750561969006,1.5938275,135.4,135.38,11.0246622]
[1750561969655,1.5938275,135.4,135.33,6.5032]
[1750561969656,11.0246622,135.39,135.33,6.5032]
[1750561969822,11.0246622,135.39,135.32,15.51877031]
[1750561969823,11.0246622,135.34,135.32,4.43393437]
[1750561970118,26.0,135.37,135.32,4.43393437]
[1750561970119,11.0246622,135.33,135.32,4.43393437]
[1750561970315,11.0246622,135.33,135.29,15.52144024]
[1750561970503,11.0246622,135.33,135.29,4.43491758]
[1750561970710,11.0246622,135.32,135.29,4.43491758]
[1750561971229,11.0246622,135.31,135.29,4.43491758]
[1750561971418,11.0246622,135.33,135.29,4.43491758]
[1750561972919,18.37174499,135.33,135.28,33.89505907]
[1750561973435,18.37174499,135.32,135.28,15.52331408]
[1750561979760,18.37174499,135.32,135.28,4.43524541]
[1750561979911,18.37174499,135.32,135.24,22.18168531]
[1750561979912,18.37174499,135.29,135.26,4.43590122]
[1750561980111,18.37174499,135.28,135.24,4.43655723]